bitfinex-derivatives/quotes_SOLF0:USTF0_20251020
["timestamp","ask_amount","ask_price","bid_price","bid_amount"]
[1760980506926,2.77,187.14,187.04,2.9]
[1760980507129,2.77,187.12,187.04,2.9]
[1760980507525,7.5791,187.1,187.04,7.7103]
[1760980507722,2.77,187.09,187.04,7.7103]
[1760980508026,2.77,187.09,187.04,4.8103]
[1760980508232,2.77,187.09,187.05,2.9]
[1760980508442,2.77,187.12,187.05,7.7101]
[1760980508828,2.77,187.12,187.05,2.9]
[1760980509229,2.77,187.12,187.06,4.8098]
[1760980509431,2.77,187.12,187.05,2.9]
[1760980510526,2.77,187.09,187.01,2.9]
[1760980511439,4.809,187.1,187.01,2.9]
[1760980511928,7.579,187.1,187.05,4.8101]
[1760980512227,2.77,187.09,187.05,4.8101]
[1760980512621,2.77,187.09,187.05,7.7101]
[1760980512827,2.77,187.09,187.06,2.9]
[1760980513637,7.5788,187.11,187.06,2.9]
[1760980513833,2.77,187.1,187.06,2.9]
[1760980517539,2.86,187.14,187.07,2.78]
[1760980518030,2.86,187.14,187.1,7.5889]
[1760980518435,2.86,187.14,187.11,2.78]
[1760980518825,2.86,187.14,187.1,4.8089]
[1760980519031,2.86,187.14,187.05,2.78]
[1760980519226,2.86,187.12,187.05,2.78]
[1760980519735,7.6685,187.12,187.06,7.5898]
[1760980519937,7.6685,187.12,187.07,2.78]
[1760980520134,4.8085,187.12,187.07,2.78]
[1760980520328,2.86,187.11,187.07,2.78]
[1760980521336,7.6679,187.14,187.07,2.78]
[1760980521633,2.86,187.14,187.07,2.78]
[1760980522136,7.6682,187.13,187.07,2.78]
[1760980523434,4.8085,187.12,187.07,2.78]
[1760980523636,2.86,187.11,187.07,2.78]
[1760980523937,7.6678,187.15,187.08,4.8092]
[1760980524139,7.6678,187.15,187.09,2.78]
[1760980524342,2.86,187.15,187.09,2.78]
[1760980524531,4.808,187.14,187.09,7.5891]
[1760980524841,2.86,187.15,187.02,2.78]
[1760980525738,7.6682,187.13,187.07,4.8094]
[1760980525938,7.6682,187.13,187.07,7.5894]
[1760980526638,7.6682,187.13,187.09,2.78]
[1760980526940,2.86,187.13,187.09,2.78]
[1760980527529,2.86,187.13,187.09,4.8091]
[1760980527735,2.86,187.13,187.1,2.68]
[1760980528938,4.808,187.14,187.1,2.68]
[1760980529140,7.568,187.14,187.1,2.68]
[1760980530034,5.18930098,187.2,187.05,4.8101]
[1760980530035,4.8083,187.13,187.05,4.8101]
[1760980530348,2.76,187.12,187.05,2.68]
[1760980530940,4.8083,187.13,187.09,7.489]
[1760980531139,4.8083,187.13,187.1,2.68]
[1760980531340,2.76,187.13,187.1,2.68]
[1760980532045,2.76,187.13,187.1,7.4888]
[1760980532553,2.76,187.18,187.11,2.68]
[1760980532746,4.0228286,187.17,187.11,2.68]
[1760980533046,2.76,187.18,187.11,2.68]
[1760980533247,4.02283213,187.17,187.11,2.68]
[1760980533441,2.76,187.18,187.11,2.68]
[1760980533639,4.02280294,187.17,187.11,2.68]
[1760980533840,2.76,187.18,187.13,4.808]
[1760980534037,6.78280362,187.17,187.14,2.68]
[1760980534339,2.76,187.17,187.14,2.68]
[1760980535652,2.76,187.18,187.14,2.68]
[1760980536151,5.18930098,187.24,187.15,2.68]
[1760980536152,11.38968626,187.21,187.15,2.68]
[1760980536446,2.76,187.19,187.15,2.68]
[1760980537158,2.76,187.22,187.16,2.68]
[1760980537348,6.72680476,187.21,187.16,2.68]
[1760980537542,2.76,187.21,187.16,2.68]
[1760980537856,2.76,187.21,187.12,2.68]
[1760980538044,6.72734597,187.2,187.12,2.68]
[1760980538244,2.76,187.2,187.14,4.8078]
[1760980538552,2.76,187.23,187.15,2.68]
[1760980538946,2.76,187.21,187.15,2.68]
[1760980539352,7.5663,187.21,187.15,2.68]
[1760980539550,2.76,187.2,187.14,4.8077]
[1760980540047,4.8067,187.19,187.12,7.4883]
[1760980540351,7.5667,187.19,187.12,7.4883]
[1760980540848,7.5667,187.19,187.13,2.68]
[1760980541643,4.52785899,187.24,187.13,2.68]
[1760980541848,4.8062,187.21,187.14,2.68]
[1760980542046,7.5662,187.21,187.14,2.68]
[1760980543041,7.5662,187.21,187.15,7.4875]
[1760980543646,2.76,187.21,187.16,7.4872]
[1760980544451,2.76,187.21,187.17,2.68]
[1760980545956,4.8054,187.24,187.18,2.68]
[1760980546166,2.76,187.22,187.1,2.68]
[1760980546459,2.76,187.2,187.07,2.68]
[1760980546659,2.76,187.17,187.07,2.68]
[1760980547049,2.76,187.2,187.07,2.68]
[1760980547256,8.43129877,187.23,187.11,7.4885]
[1760980547257,2.76,187.16,187.11,7.4885]
[1760980547460,2.76,187.16,187.03,9.97619419]
[1760980547461,2.76,187.16,187.07,2.68]
[1760980547657,7.5675,187.16,187.08,4.8093]
[1760980547846,2.76,187.15,187.08,7.4893]
[1760980548456,4.8078,187.15,187.08,7.4893]
[1760980548660,7.5678,187.15,187.08,7.4893]
[1760980550760,4.8078,187.15,187.08,7.4893]
[1760980550960,2.76,187.14,187.08,7.4893]
[1760980553964,2.76,187.14,187.1,2.68]
[1760980557271,2.81,187.18,187.04,9.6208]
[1760980557468,2.81,187.21,187.05,2.66]
[1760980557967,2.81,187.21,187.01,2.66]
[1760980558559,2.81,187.21,187.09,2.66]
[1760980559369,7.6162,187.21,187.15,4.8075]
[1760980559872,7.6162,187.21,187.15,2.66]
[1760980561067,4.8062,187.21,187.15,2.66]
[1760980561274,2.81,187.19,187.15,7.4675]
[1760980561466,2.81,187.19,187.15,2.66]
[1760980562170,4.8062,187.21,187.15,2.66]
[1760980562477,2.81,187.22,187.15,2.66]
[1760980563271,7.6159,187.22,187.18,2.66]
[1760980563472,2.81,187.21,187.17,2.66]
[1760980564975,4.8061,187.21,187.17,2.66]
[1760980565175,2.81,187.2,187.17,2.66]
[1760980566075,2.81,187.26,187.13,4.8081]
[1760980566372,2.81,187.18,187.08,2.66]
[1760980567970,4.8081,187.13,187.08,2.66]
[1760980568163,2.81,187.12,187.08,2.66]
[1760980568768,4.8077,187.15,187.08,2.66]
[1760980569077,2.81,187.16,187.08,2.66]
[1760980570069,8.43129877,187.19,187.08,2.66]
[1760980570269,2.81,187.17,187.08,2.66]
[1760980570779,2.81,187.12,187.08,4.8093]
[1760980571271,2.81,187.12,187.08,7.4693]
[1760980571472,2.81,187.15,187.09,2.66]
[1760980571782,2.81,187.15,187.05,2.66]
[1760980572678,2.81,187.15,187.1,4.8088]
[1760980572879,4.8069,187.18,187.11,2.66]
[1760980573082,13.35210426,187.24,187.11,2.66]
[1760980573083,2.81,187.23,187.11,2.66]
[1760980573376,2.81,187.27,187.1,9.96613264]
[1760980573574,3.91203826,187.26,187.13,2.66]
[1760980573772,2.81,187.27,187.13,2.66]
[1760980573972,2.81,187.25,187.13,2.66]
[1760980574373,2.81,187.25,187.1,9.96613264]
[1760980574374,2.81,187.25,187.16,4.8072]
[1760980574574,2.81,187.25,187.16,7.7072]
[1760980575177,2.94,187.24,187.16,7.7072]
[1760980576084,4.8057,187.23,187.16,7.7072]
[1760980576286,2.94,187.24,187.17,7.7069]
[1760980576475,7.7454,187.24,187.17,7.7069]
[1760980580480,7.7454,187.24,187.17,2.9]
[1760980581485,2.94,187.27,187.2,2.9]
[1760980582990,7.7446,187.27,187.21,4.8059]
[1760980583491,7.7446,187.27,187.21,7.7059]
[1760980583678,7.7446,187.27,187.21,4.8059]
[1760980583880,7.7446,187.27,187.21,7.7059]
[1760980584080,2.94,187.33,187.23,2.9]
[1760980584285,3.96197029,187.32,187.23,2.9]
[1760980584489,2.94,187.33,187.23,2.9]
[1760980584794,4.8033,187.32,187.26,4.8046]
[1760980585287,4.8036,187.31,187.24,4.8052]
[1760980585490,4.8036,187.31,187.25,2.9]
[1760980585983,7.7436,187.31,187.25,2.9]
[1760980587493,7.7436,187.31,187.25,7.7049]
[1760980588389,7.7436,187.31,187.26,4.8046]
[1760980588692,7.7436,187.31,187.27,2.66]
[1760980589983,4.803,187.33,187.27,7.4643]
[1760980590183,2.74,187.35,187.27,7.4643]
[1760980590388,2.74,187.35,187.18,9.6136]
[1760980590389,2.74,187.35,187.19,2.66]
[1760980591096,2.74,187.34,187.19,2.66]
[1760980592096,4.8041,187.29,187.23,7.4653]
[1760980594099,7.5441,187.29,187.23,7.4653]
[1760980596599,7.5441,187.29,187.24,7.4652]
[1760980597203,7.5441,187.29,187.25,2.66]
[1760980597507,4.8036,187.31,187.25,2.66]
[1760980597702,4.8036,187.31,187.25,7.4649]
[1760980598099,2.74,187.35,187.26,2.66]
[1760980599000,4.8024,187.36,187.27,2.66]
[1760980599205,2.74,187.35,187.27,2.66]
[1760980600106,2.74,187.35,187.3,4.8036]
[1760980600301,2.74,187.35,187.31,2.66]
[1760980601003,2.74,187.35,187.28,4.8041]
[1760980601702,4.8029,187.34,187.28,4.8041]
[1760980601903,7.5429,187.34,187.3,2.66]
[1760980602109,2.74,187.37,187.3,2.66]
[1760980602705,7.5426,187.35,187.3,2.66]
[1760980602900,2.74,187.34,187.3,2.66]
[1760980604002,2.74,187.33,187.28,2.66]
[1760980604409,4.8028,187.34,187.28,2.66]
[1760980604606,7.5423,187.36,187.29,2.66]
[1760980605205,7.5425,187.35,187.29,2.66]
[1760980605603,2.74,187.35,187.29,2.66]
[1760980605804,2.74,187.35,187.22,2.66]
[1760980607199,4.8031,187.33,187.27,4.8044]
[1760980607603,4.8031,187.33,187.27,7.4644]
[1760980609409,5.17999849,187.39,187.27,2.66]
[1760980609616,2.74,187.31,187.22,2.66]
[1760980610410,5.17999849,187.34,187.25,4.8049]
[1760980610607,5.17999849,187.34,187.25,7.4649]
[1760980610608,2.74,187.33,187.25,7.4649]
[1760980612007,4.8036,187.31,187.25,7.4649]
[1760980612908,7.5436,187.31,187.25,7.4649]
[1760980613506,2.74,187.31,187.27,2.66]
[1760980614114,2.74,187.31,187.27,7.4644]
[1760980614314,2.74,187.31,187.27,2.66]
[1760980615319,4.8031,187.33,187.28,2.66]
[1760980615520,7.5431,187.33,187.28,2.66]
[1760980615721,2.74,187.32,187.28,2.66]
[1760980620319,7.5433,187.32,187.28,2.66]
[1760980620519,2.74,187.31,187.28,2.66]
[1760980620828,2.74,187.3,187.25,7.7149]
[1760980621724,2.74,187.3,187.26,2.91]
[1760980622116,2.74,187.29,187.26,2.91]
[1760980622825,2.74,187.29,187.23,7.7153]
[1760980623427,2.74,187.29,187.24,2.91]
[1760980623724,7.5441,187.29,187.24,7.7152]
[1760980623920,7.5441,187.29,187.25,2.91]
[1760980623921,2.74,187.28,187.25,2.91]
[1760980626331,7.5435,187.31,187.25,2.91]
[1760980626625,2.74,187.3,187.25,2.91]
[1760980627026,2.74,187.29,187.25,7.7148]
[1760980628027,2.74,187.28,187.23,4.8054]
[1760980628231,2.74,187.28,187.23,7.7154]
[1760980629028,2.74,187.27,187.23,7.7154]
[1760980629227,2.74,187.27,187.23,4.8054]
[1760980629432,7.5438,187.3,187.25,2.91]
[1760980629728,7.01780046,187.29,187.25,2.91]
[1760980629922,2.74,187.29,187.25,2.91]
[1760980633126,2.74,187.32,187.26,2.91]
[1760980633538,2.74,187.35,187.26,2.91]
[1760980633726,8.22629806,187.34,187.26,2.91]
[1760980633928,2.74,187.35,187.26,2.91]
[1760980634124,2.74,187.33,187.26,2.91]
[1760980634330,3.95856591,187.32,187.26,2.91]
[1760980634530,2.85,187.3,187.22,2.91]
[1760980634734,2.85,187.28,187.22,2.91]
[1760980636033,2.85,187.28,187.23,4.8054]
[1760980636336,2.85,187.28,187.23,7.4954]
[1760980637035,2.85,187.28,187.24,2.69]
[1760980638137,4.8038,187.3,187.24,7.4951]
[1760980638339,2.85,187.31,187.24,2.69]
[1760980638530,2.85,187.35,187.24,2.69]
[1760980638730,6.78810831,187.34,187.3,2.69]
[1760980638928,4.95154219,187.38,187.29,4.8038]
[1760980638929,2.85,187.36,187.29,4.8038]
[1760980639130,2.85,187.34,187.29,4.8038]
[1760980639325,2.85,187.32,187.29,4.8038]
[1760980639534,2.85,187.36,187.29,7.4938]
[1760980639730,2.85,187.34,187.29,7.4938]
[1760980639934,4.8028,187.34,187.29,2.69]
[1760980640240,2.85,187.33,187.29,2.69]
[1760980641236,2.85,187.33,187.3,2.69]
[1760980641634,2.85,187.33,187.29,4.8038]
[1760980642039,2.85,187.33,187.29,7.4938]
[1760980642240,2.85,187.36,187.3,2.69]
[1760980642542,2.85,187.34,187.3,2.69]
[1760980644840,4.802,187.37,187.25,2.69]
[1760980645044,12.51055515,187.36,187.25,2.69]
[1760980645346,7.88618182,187.35,187.25,2.69]
[1760980645548,7.88618182,187.34,187.25,2.69]
[1760980645743,2.85,187.35,187.26,2.69]
[1760980645938,7.88782503,187.34,187.26,2.69]
[1760980646136,2.85,187.35,187.3,4.8036]
[1760980646338,2.85,187.33,187.3,7.4936]
[1760980649247,7.4625,187.35,187.31,2.87]
[1760980649442,10.55238548,187.34,187.31,2.87]
[1760980649643,2.66,187.34,187.31,2.87]
[1760980649947,2.66,187.34,187.3,4.8036]
[1760980650147,2.66,187.34,187.3,7.6736]
[1760980650347,7.4628,187.34,187.28,4.804]
[1760980650649,7.4628,187.34,187.28,7.674]
[1760980650843,2.66,187.33,187.28,7.674]
[1760980651546,2.66,187.33,187.28,4.804]
[1760980651946,2.66,187.33,187.28,7.674]
[1760980652342,2.66,187.33,187.28,4.804]
[1760980652748,2.66,187.32,187.28,4.804]
[1760980652942,2.66,187.32,187.28,7.674]
[1760980653143,2.66,187.32,187.28,4.804]
[1760980653345,2.66,187.32,187.29,7.6739]
[1760980653741,2.66,187.32,187.29,2.87]
[1760980656553,12.12703015,187.35,187.29,7.6739]
[1760980656752,10.5503705,187.34,187.3,2.87]
[1760980657053,3.94036758,187.33,187.3,2.87]
[1760980657354,2.66,187.34,187.3,2.87]
[1760980657544,3.94137537,187.33,187.3,2.87]
[1760980657850,2.66,187.34,187.3,2.87]
[1760980658650,7.4628,187.34,187.3,2.87]
[1760980658851,2.66,187.33,187.3,2.87]
[1760980660253,7.463,187.33,187.27,4.8044]
[1760980660456,7.463,187.33,187.27,7.6744]
[1760980662453,2.66,187.32,187.29,2.87]
[1760980663754,2.66,187.32,187.26,2.87]
[1760980663954,2.66,187.3,187.21,2.87]
[1760980664452,2.66,187.26,187.22,4.8056]
[1760980664654,2.66,187.26,187.22,7.6756]
[1760980665243,2.66,187.26,187.23,2.87]
[1760980667152,2.66,187.26,187.22,4.8056]
[1760980667352,2.66,187.26,187.22,7.6756]
[1760980667550,2.66,187.26,187.23,2.87]
[1760980669155,7.4646,187.27,187.23,2.87]
[1760980669455,2.66,187.26,187.23,2.87]
[1760980672659,7.4641,187.29,187.23,7.6754]
[1760980673250,4.8041,187.29,187.24,2.87]
[1760980673653,4.65475833,187.35,187.21,2.87]
[1760980673849,7.86306124,187.34,187.21,2.87]
[1760980674059,3.92063476,187.33,187.21,2.87]
[1760980674264,2.66,187.36,187.21,2.87]
[1760980674452,12.51727778,187.35,187.21,2.87]
[1760980674659,4.8027,187.34,187.3,2.87]
[1760980676054,7.4622,187.36,187.31,2.87]
[1760980676267,4.95687067,187.41,187.31,2.87]
[1760980676454,2.66,187.39,187.31,2.87]
[1760980676657,15.32447065,187.38,187.31,7.6733]
[1760980676856,7.4617,187.38,187.32,2.87]
[1760980677154,7.4617,187.38,187.32,7.673]
[1760980677461,9.45550027,187.4,187.33,2.68]
[1760980677757,7.86234266,187.39,187.33,2.68]
[1760980677962,6.83037097,187.38,187.33,2.68]
[1760980678167,2.91,187.38,187.33,2.68]
[1760980679264,3.93972951,187.42,187.33,2.68]
[1760980679564,2.91,187.44,187.33,2.68]
[1760980679769,2.91,187.42,187.33,2.68]
[1760980680068,6.84962396,187.41,187.33,2.68]
[1760980680255,2.91,187.41,187.33,2.68]
[1760980680457,7.711,187.41,187.33,7.4828]
[1760980680658,7.711,187.41,187.34,2.68]
[1760980680853,2.91,187.4,187.34,2.68]
[1760980681655,2.91,187.38,187.3,2.68]
[1760980681859,2.91,187.36,187.23,9.96509585]
[1760980682056,4.61705137,187.4,187.24,2.68]
[1760980682057,2.91,187.34,187.24,2.68]
[1760980682260,3.91887141,187.35,187.2,2.68]
[1760980682261,2.91,187.27,187.2,2.68]
[1760980682761,4.8048,187.26,187.2,2.68]
[1760980682957,2.91,187.26,187.17,29.06]
[1760980683468,4.8056,187.23,187.16,2.68]
[1760980684271,2.91,187.25,187.17,2.68]
[1760980684660,4.06859022,187.28,187.17,2.68]
[1760980684867,4.8044,187.28,187.2,4.8061]
[1760980685169,2.91,187.26,187.11,2.68]
[1760980685973,7.7149,187.26,187.18,2.68]
[1760980686770,2.91,187.3,187.16,2.68]
[1760980687176,2.91,187.33,187.16,2.68]
[1760980687474,2.91,187.31,187.16,2.68]
[1760980687663,3.94043342,187.34,187.16,2.68]
[1760980687865,4.073802,187.33,187.28,2.68]
[1760980688175,6.983802,187.32,187.28,2.68]
[1760980688378,2.91,187.32,187.28,2.68]
[1760980688670,2.91,187.32,187.27,4.8042]
[1760980688879,2.91,187.3,187.24,2.68]
[1760980689171,2.91,187.35,187.24,2.68]
[1760980689373,10.93841737,187.34,187.24,2.68]
[1760980689571,4.08093199,187.33,187.24,2.68]
[1760980689770,4.08093199,187.32,187.26,2.68]
[1760980689969,4.94351824,187.37,187.26,2.68]
[1760980690168,4.08025555,187.36,187.26,2.68]
[1760980690380,2.91,187.38,187.26,2.68]
[1760980690577,8.88158645,187.37,187.3,7.4835]
[1760980690763,4.8021,187.37,187.3,7.4835]
[1760980691177,2.91,187.38,187.3,7.4835]
[1760980691377,4.05842607,187.37,187.3,7.4835]
[1760980691574,2.91,187.38,187.3,7.4835]
[1760980691876,4.05701439,187.37,187.3,7.4835]
[1760980692070,2.91,187.38,187.32,2.68]
[1760980692276,4.05509178,187.37,187.32,2.68]
[1760980692476,2.91,187.37,187.32,2.68]
[1760980692974,4.8015,187.39,187.32,2.68]
[1760980693180,6.96554814,187.38,187.25,2.68]
[1760980693477,2.91,187.36,187.3,4.8036]
[1760980693679,2.91,187.36,187.29,2.68]
[1760980693983,7.7125,187.35,187.22,2.68]
[1760980694982,2.91,187.35,187.29,4.8038]
[1760980695683,7.7125,187.35,187.28,2.86]
[1760980695983,2.93,187.38,187.28,2.86]
[1760980696177,6.96873141,187.37,187.28,2.86]
[1760980696377,2.93,187.37,187.28,2.86]
[1760980696781,2.93,187.37,187.3,4.8035]
[1760980697281,2.93,187.36,187.3,4.8035]
[1760980697785,2.93,187.36,187.28,2.86]
[1760980698179,7.7323,187.36,187.28,2.86]
[1760980698578,7.7323,187.36,187.29,4.8038]
[1760980698983,7.7323,187.36,187.28,2.86]
[1760980699377,2.93,187.35,187.28,2.86]
[1760980699885,7.7326,187.35,187.28,7.6641]
[1760980701077,2.93,187.35,187.29,4.8037]
[1760980704786,2.93,187.35,187.29,7.6637]
[1760980704988,7.7325,187.35,187.3,7.6635]
[1760980705188,2.93,187.34,187.3,7.6635]
[1760980707102,2.93,187.39,187.31,2.86]
[1760980707303,2.71,187.38,187.31,2.86]
[1760980708402,2.71,187.35,187.3,4.8034]
[1760980708603,2.71,187.35,187.3,7.7234]
[1760980708990,2.71,187.34,187.3,7.7234]
[1760980711698,2.71,187.33,187.27,4.8043]
[1760980712405,2.71,187.31,187.28,2.92]
[1760980712599,2.71,187.35,187.28,2.92]
[1760980712805,4.8028,187.34,187.28,7.7241]
[1760980713001,4.8028,187.34,187.28,2.92]
[1760980714102,2.71,187.33,187.29,7.7238]
[1760980714301,2.71,187.39,187.3,2.92]
[1760980714497,2.71,187.37,187.3,2.92]
[1760980714805,4.61824532,187.4,187.21,24.38501246]
[1760980715002,3.9809704,187.39,187.31,2.92]
[1760980715191,2.71,187.45,187.31,2.92]
[1760980715401,0.92879257,187.47,187.39,2.92]
[1760980715606,3.9824514,187.46,187.39,2.92]
[1760980715794,3.9824514,187.45,187.39,2.92]
[1760980715999,0.92879257,187.47,187.41,7.7208]
[1760980716196,0.92879257,187.47,187.42,2.92]
[1760980716392,4.94351824,187.51,187.42,2.92]
[1760980716599,6.68967822,187.5,187.42,2.92]
[1760980716905,3.97967822,187.49,187.43,4.8003]
[1760980717098,3.97967822,187.48,187.44,2.92]
[1760980717306,7.32614694,187.5,187.44,2.92]
[1760980717506,6.67300543,187.49,187.44,2.92]
[1760980717706,3.96300543,187.48,187.44,2.92]
[1760980719202,2.71,187.49,187.44,2.92]
[1760980719403,6.67300543,187.49,187.44,2.92]
[1760980719600,2.71,187.49,187.44,2.92]
[1760980719801,3.96300543,187.49,187.44,2.92]
[1760980720001,3.96300543,187.5,187.44,2.92]
[1760980720198,3.96300543,187.49,187.44,2.92]
[1760980720403,3.96300543,187.5,187.44,2.92]
[1760980720603,3.96300543,187.49,187.44,2.92]
[1760980720902,3.96300543,187.5,187.44,2.92]
[1760980721805,8.76150543,187.51,187.44,2.92]
[1760980722105,2.71,187.5,187.44,2.92]
[1760980722305,6.67300543,187.5,187.44,2.92]
[1760980722507,2.71,187.5,187.44,2.92]
[1760980723504,3.8916379,187.5,187.39,2.92]
[1760980723809,2.71,187.48,187.39,2.92]
[1760980724201,4.7998,187.46,187.39,2.92]
[1760980724709,7.5098,187.46,187.39,2.92]
[1760980726605,4.7991,187.48,187.41,2.92]
[1760980727006,7.5091,187.48,187.41,2.92]
[1760980730712,4.47498845,187.54,187.41,2.92]
[1760980730919,4.47498845,187.54,187.37,2.92]
[1760980730920,2.71,187.5,187.37,2.92]
[1760980731122,2.71,187.47,187.34,2.92]
[1760980731711,2.71,187.46,187.34,7.7225]
[1760980732112,2.71,187.46,187.34,2.92]
[1760980732606,2.71,187.38,187.34,2.92]
[1760980732822,2.71,187.38,187.31,4.95889955]
[1760980733320,7.5118,187.38,187.31,7.87889955]
[1760980734122,7.5118,187.38,187.32,4.95889955]
[1760980735016,2.71,187.36,187.32,4.95889955]
[1760980735215,2.71,187.36,187.31,2.92]
[1760980736015,2.71,187.35,187.31,2.92]
[1760980736926,2.71,187.35,187.29,4.95889955]
[1760980737722,7.5126,187.35,187.29,4.95889955]
[1760980737920,2.71,187.35,187.28,12.68299955]
[1760980738326,2.71,187.32,187.28,7.87889955]
[1760980738628,2.71,187.32,187.28,4.95889955]
[1760980738925,2.71,187.32,187.27,7.87889955]
[1760980739521,4.8033,187.32,187.27,7.87889955]
[1760980739828,2.71,187.31,187.27,2.92]
[1760980740028,7.5135,187.31,187.26,4.95889955]
[1760980740224,2.71,187.3,187.24,4.95889955]
[1760980740528,2.71,187.3,187.23,4.95889955]
[1760980740927,2.71,187.3,187.22,4.95889955]
[1760980741334,4.8043,187.28,187.22,4.95889955]
[1760980742323,4.94351824,187.41,187.21,5.17163244]
[1760980742324,2.71,187.35,187.26,2.92]
[1760980742523,2.71,187.35,187.24,4.95889955]
[1760980742828,2.71,187.33,187.25,2.92]
[1760980743129,2.71,187.33,187.26,2.92]
[1760980743426,7.5131,187.33,187.26,2.92]
[1760980743826,4.8024,187.35,187.27,2.92]
[1760980744415,4.8024,187.35,187.29,2.92]
[1760980745220,7.5119,187.37,187.29,2.92]
[1760980745831,7.5119,187.37,187.3,2.92]
[1760980746631,7.5123,187.36,187.3,2.92]
[1760980747022,4.8023,187.36,187.3,2.92]
[1760980747826,2.71,187.34,187.27,4.95889955]
[1760980748131,4.8025,187.35,187.28,2.92]
[1760980748731,4.8025,187.35,187.29,2.92]
[1760980750031,40.54351824,187.46,187.32,2.92]
[1760980750032,2.71,187.41,187.32,2.92]
[1760980750224,2.71,187.41,187.33,2.92]
[1760980750922,7.5109,187.41,187.33,7.7228]
[1760980751127,7.5109,187.41,187.34,2.92]
[1760980751327,2.71,187.41,187.34,2.92]
[1760980752935,4.8013,187.4,187.34,2.92]
[1760980753530,7.5113,187.4,187.34,2.92]
[1760980753730,7.5113,187.4,187.28,5.17163244]
[1760980753731,2.71,187.38,187.27,7.87889955]
[1760980754123,2.71,187.38,187.28,2.92]
[1760980754332,2.71,187.38,187.28,4.95889955]
[1760980754528,2.71,187.38,187.31,2.92]
[1760980754737,2.71,187.48,187.33,2.92]
[1760980754931,2.71,187.47,187.34,4.95889955]
[1760980755231,2.71,187.47,187.35,2.83]
[1760980755435,2.72,187.48,187.35,2.83]
[1760980755737,2.72,187.47,187.32,2.83]
[1760980755933,4.8013,187.4,187.33,7.6327]
[1760980756236,4.8013,187.4,187.34,2.83]
[1760980757036,4.8013,187.4,187.34,4.8025]
[1760980757235,7.5213,187.4,187.35,2.83]
[1760980757437,2.72,187.39,187.35,2.83]
[1760980758733,2.72,187.38,187.35,2.83]
[1760980758940,7.5216,187.39,187.35,2.83]
[1760980759741,4.8009,187.41,187.35,2.83]
[1760980761143,7.5209,187.41,187.35,2.83]
[1760980761734,4.8005,187.43,187.35,2.83]
[1760980762632,2.72,187.42,187.35,2.83]
[1760980762832,2.72,187.37,187.3,6.61186607]